Cogmind - Beta 16 @@@ ROGUE MODE // 2025.10.27 @ 02:22:27 Player: alice_fexa Result: Escaped! Performance ------------- Evolutions (9) 4500 Regions Visited (18) 3600 Robots Destroyed (98) 490 Value Destroyed (2315) 2315 Prototype IDs (38) 760 Alien Tech Used (0) 0 Bonus (3300) 3300 TOTAL SCORE: 14965 Bonus ------- Aligned with FarCom 300 Win 3000 Cogmind --------- Core Integrity 1600/1600 Matter 270/300 Energy 194/200 System Corruption 0% Temperature Cool (15) Movement Flying (28) Location To Epsilon Eridani Parts ------- > --- POWER (2) -------- Micro Fission Core Micro Antimatter Reactor > --- PROPULSION (6) --- Cooled VTOL Module Impulse Thruster Q-thruster Q-thruster Impulse Thruster Array > --- UTILITY (15) ----- Advanced Heat Sink Medium Storage Unit Gravity Neutralizer Structural Scanner Machine Analyzer Advanced Visual Processing Unit Advanced Signal Interpreter Advanced Transmission Jammer Advanced Cloaking Device Centrium Heavy Armor Plating Hacking Suite Advanced System Shield > --- WEAPON (2) ------- Improved Plasma Cutter Chainsword (fused) > --- INVENTORY (10) --- Micro Fission Core Light Quantum Reactor Field Propulsion Array Q-thruster Q-thruster Advanced ECM Suite Missile Launcher Powered Hammer Lance Peak State ------------ > --- POWER ------------ Micro Fission Core Micro Antimatter Reactor > --- PROPULSION ------- Cooled VTOL Module Impulse Thruster Q-thruster Q-thruster Impulse Thruster Array > --- UTILITY ---------- Advanced Heat Sink Medium Storage Unit Gravity Neutralizer Structural Scanner Machine Analyzer Advanced Visual Processing Unit Advanced Signal Interpreter Advanced Transmission Jammer Advanced Cloaking Device Centrium Heavy Armor Plating Hacking Suite Advanced System Shield > --- WEAPON ----------- Chainsword Lance > --- INVENTORY -------- Micro Fission Core Light Quantum Reactor Field Propulsion Array Q-thruster Q-thruster Advanced ECM Suite Missile Launcher Improved Plasma Cutter Powered Hammer [Rating: 141] Favorites ----------- Power Micro Fission Core Engine Ion Engine Power Core Micro Fission Core Reactor Micro Antimatter Reactor Propulsion Improved Treads Treads Improved Treads Wheel Wheel Hover Unit Improved Airjet Flight Unit Improved Flight Unit Utility Advanced Visual Processing Unit Device Gravity Neutralizer Storage Huge Storage Unit Processor Advanced Visual Processing Unit Hackware Hacking Suite Protection Hardened Light Armor Plating Weapon Light Assault Rifle Energy Gun Improved Medium Laser Energy Cannon Particle Cannon Ballistic Gun Light Assault Rifle Ballistic Cannon Light Cannon Launcher Rocket Launcher Special Weapon Remote Datajack Impact Weapon Powered Hammer Slashing Weapon Chainsword Piercing Weapon Lance Build | -11 -10 -10 -9 -9 -9 -8 -8 -7 -7 -7 -6 -6 -6 -5 -4 -3 -2 -1 ------- Run | Yrd Mat Min Mat Min Exi Min Mat Fac Was Fac Fac Was Fac Fac Fac Res Res Acc Slots Evolved 18 | . . . 2 . . . 2 2 . . 2 . . 2 2 2 2 2 Power 1 | . . . . . . . . . . . . . . 1 . . . . Propulsion 4 | . . . 1 . . . 1 . . . . . . 1 . . 1 . Utility 13 | . . . 1 . . . 1 2 . . 2 . . . 2 2 1 2 Weapon . | . . . . . . . . . . . . . . . . . . . Parts Attached 107 | 6 11 1 22 . . 4 5 11 2 11 3 1 2 6 4 5 10 3 Power 12 | 1 2 . 1 . . . 1 2 . . . . 1 2 . 1 1 . Engine 6 | 1 2 . 1 . . . 1 1 . . . . . . . . . . Core 5 | . . . . . . . . 1 . . . . 1 2 . . 1 . Reactor 1 | . . . . . . . . . . . . . . . . 1 . . Propulsion 31 | 2 3 . 8 . . 1 2 3 . 4 . . . 1 1 1 3 2 Treads 7 | 1 1 . 3 . . 1 1 . . . . . . . . . . . Leg . | . . . . . . . . . . . . . . . . . . . Wheel 8 | 1 2 . 4 . . . 1 . . . . . . . . . . . Hover 3 | . . . . . . . . 1 . 2 . . . . . . . . Flight 13 | . . . 1 . . . . 2 . 2 . . . 1 1 1 3 2 Utility 41 | 1 3 1 6 . . 2 2 3 1 5 3 1 1 2 2 3 5 . Device 18 | . . 1 4 . . 1 1 1 1 2 1 . . 1 1 1 3 . Storage 5 | 1 2 . . . . . . . . . 1 1 . . . . . . Processor 7 | . . . 1 . . . 1 2 . 1 1 . 1 . . . . . Hackware 4 | . . . . . . . . . . . . . . . 1 2 1 . Protection 7 | . 1 . 1 . . 1 . . . 2 . . . 1 . . 1 . Artifact . | . . . . . . . . . . . . . . . . . . . Weapon 23 | 2 3 . 7 . . 1 . 3 1 2 . . . 1 1 . 1 1 Energy Gun 8 | . . . 5 . . 1 . 2 . . . . . . . . . . Energy Cannon 1 | . . . 1 . . . . . . . . . . . . . . . Ballistic Gun 4 | 2 2 . . . . . . . . . . . . . . . . . Ballistic Cannon 1 | . 1 . . . . . . . . . . . . . . . . . Launcher 2 | . . . 1 . . . . . 1 . . . . . . . . . Special Weapon 2 | . . . . . . . . . . 1 . . . . . . . 1 Impact Weapon 1 | . . . . . . . . . . 1 . . . . . . . . Slashing Weapon 2 | . . . . . . . . 1 . . . . . 1 . . . . Piercing Weapon 2 | . . . . . . . . . . . . . . . 1 . 1 . Special Melee Weapon . | . . . . . . . . . . . . . . . . . . . Unidentified Prototypes 10 | . . . 2 . . . . 2 2 2 . 1 . . . . 1 . Parts Lost 17 | . . 2 3 . . 3 . . 1 3 . . . . . . 5 . Power . | . . . . . . . . . . . . . . . . . . . Propulsion 8 | . . 1 1 . . 1 . . . 3 . . . . . . 2 . Utility 7 | . . 1 2 . . 1 . . . . . . . . . . 3 . Weapon 2 | . . . . . . 1 . . 1 . . . . . . . . . Highest Loss Streak 3 | . . 2 1 . . 3 . . 1 2 . . . . . . 2 . To Critical Strikes . | . . . . . . . . . . . . . . . . . . . Average Backups 15 | 3 19 24 24 25 25 24 24 15 4 4 4 5 7 8 8 8 8 9 Power 1 | . 2 3 2 2 2 2 2 1 1 1 1 1 2 2 1 1 1 1 Propulsion 3 | 1 6 8 7 7 6 5 4 2 . . . . . . 1 2 2 3 Utility 3 | . 4 4 3 4 4 6 6 4 2 1 1 2 3 3 3 2 2 1 Weapon 5 | . 6 8 10 12 12 11 11 7 1 1 1 1 1 1 1 1 1 2 Tool/Special . | . . . . . . . . . . . . . . . . . . . Unused Backups 51 | . 4 1 11 . 1 1 4 13 2 2 . . 1 3 2 1 . 5 Power 11 | . 3 . 2 . . . . 1 . 1 . . 1 2 . . . 1 Propulsion 13 | . . . 4 . 1 . 2 1 . . . . . . 1 1 . 3 Utility 7 | . 1 . . . . . . 2 1 1 . . . 1 1 . . . Weapon 20 | . . 1 5 . . 1 2 9 1 . . . . . . . . 1 Tool/Special . | . . . . . . . . . . . . . . . . . . . Average Slot Usage (%) 96 | . 99 100 98 100 100 98 99 91 96 91 98 100 99 93 93 94 89 83 Engine 6 | . 14 14 11 11 11 11 9 6 . . . . . . . . . . Core 3 | . . . . . . . . . 7 7 6 6 6 10 10 8 7 4 Treads 8 | . 8 4 20 22 22 21 22 7 . . . . . . . . . . Wheel 8 | . 19 24 12 11 11 11 12 7 . . . . . . . . . . Hover 2 | . . . . . . . . . 7 15 6 6 6 . . . . . Flight 8 | . . . . . . . . 11 23 9 20 20 19 22 21 19 21 19 Device 12 | . . 7 15 22 22 12 9 11 15 14 14 13 13 16 20 19 18 20 Storage 7 | . 14 14 11 11 11 11 9 3 . . 4 6 6 5 5 4 4 4 Processor 10 | . . . 3 . . . 9 17 23 30 26 26 26 18 15 14 13 12 Hackware 2 | . . . . . . . . . . . . . . . 5 13 11 8 Protection 6 | . 13 7 1 . . 8 9 7 5 . 6 6 6 4 5 4 4 4 Energy Gun 6 | . . . 18 22 22 21 18 10 5 . . . . . . . . . Ballistic Gun 4 | . 20 28 . . . . . . . . . . . . . . . . Ballistic Cannon 1 | . 7 . . . . . . . . . . . . . . . . . Impact Weapon 1 | . . . . . . . . . . 1 6 6 6 5 5 4 2 2 Slashing Weapon 2 | . . . . . . . . 3 7 6 6 6 6 5 5 4 4 4 Peak Build Rating 141 | 6 10 10 20 19 19 23 31 44 47 54 60 61 63 79 89 102 135 141 Average Rating 47 | 5 9 9 15 19 19 22 30 35 42 45 58 57 59 75 86 99 120 139 On Entrance 44 | . 6 10 9 19 19 19 23 31 44 37 53 58 58 63 78 89 102 135 Avg Prop Armor Cover (%) 13 | 14 9 13 18 21 21 17 20 10 6 16 6 6 6 6 . . . . Naked Turns . | . . . . . . . . . . . . . . . . . . . Heaviest Build 97 | 12 94 92 96 93 93 95 97 97 18 17 28 28 28 36 38 41 52 55 Greatest Support 56 | 10 40 20 26 16 16 16 28 34 19 38 28 28 28 41 43 44 53 56 Greatest Overweight (x) 9 | 2 9 8 9 5 5 5 6 3 . 2 . . . . . . . . Average Overweight (x) 1 | . 4 5 6 5 5 5 4 . . . . . . . . . . . Largest Inventory Capacity 25 | 8 25 25 25 25 25 25 25 25 5 5 10 10 10 10 10 10 10 10 Average Capacity 16 | 7 21 25 25 25 25 25 25 14 5 5 8 10 10 10 10 10 10 10 Most Carried 25 | 4 25 25 25 25 25 25 25 25 5 5 5 5 10 10 10 10 10 10 Average Carried 15 | 3 19 24 24 25 24 24 24 14 4 4 3 5 7 9 9 9 9 9 Final Capacity 25 | 8 25 25 25 25 25 25 25 5 5 5 10 10 10 10 10 10 10 10 Final Carried 25 | 4 25 24 25 25 25 25 25 5 5 5 5 5 10 10 10 10 10 10 Class Distribution -------------------- 46% | Mutant 23% | Scout 13% | Hacker-Ninja 6% | Scavenger-Mutant 5% | Hacker-Scout 3% | Scavenger-Scout Dominant Class ---------------- Mutant | -10/Materials Mutant | -10/Mines Mutant | -9/Materials Mutant | -9/Mines Mutant | -9/Exiles Mutant | -8/Mines Mutant | -8/Materials Scavenger-Scout | -7/Factory Scavenger-Scout | -7/Waste Scout | -7/Factory Scout | -6/Factory Scout | -6/Waste Scout | -6/Factory Scout | -5/Factory Scout | -4/Factory Hacker-Scout | -3/Research Hacker-Ninja | -2/Research Hacker-Ninja | -1/Access Resources | -11 -10 -10 -9 -9 -9 -8 -8 -7 -7 -7 -6 -6 -6 -5 -4 -3 -2 -1 ----------- Run | Yrd Mat Min Mat Min Exi Min Mat Fac Was Fac Fac Was Fac Fac Fac Res Res Acc Matter Collected 2147 | 274 514 62 278 . . 67 40 120 . 279 . . 90 60 80 68 155 60 Remotely . | . . . . . . . . . . . . . . . . . . . Salvage Created 3530 | 68 705 78 948 . . 101 178 140 . 180 . . 129 60 170 334 314 125 Parts 172 | 1 52 2 50 . . 2 9 6 . 11 . . 2 6 3 9 17 2 Haulers Intercepted 16 | . 2 . 4 . . . 1 2 . 1 . . 1 . 1 2 1 1 Recyclers Shooed . | . . . . . . . . . . . . . . . . . . . Parts Field Recycled . | . . . . . . . . . . . . . . . . . . . Retrieved Matter . | . . . . . . . . . . . . . . . . . . . Parts Self-Destructed . | . . . . . . . . . . . . . . . . . . . Prevented . | . . . . . . . . . . . . . . . . . . . Parts Restored . | . . . . . . . . . . . . . . . . . . . Kills | -11 -10 -10 -9 -9 -9 -8 -8 -7 -7 -7 -6 -6 -6 -5 -4 -3 -2 -1 ------- Run | Yrd Mat Min Mat Min Exi Min Mat Fac Was Fac Fac Was Fac Fac Fac Res Res Acc Combat Hostiles Destroyed 44 | . 19 2 15 . . 3 3 . . 1 . . . . . . 1 . Melee 2 | . . . . . . . . . . 1 . . . . . . 1 . Guns 24 | . 9 2 8 . . 2 3 . . . . . . . . . . . Cannons 12 | . 10 . 2 . . . . . . . . . . . . . . . AOE 5 | . . . 4 . . 1 . . . . . . . . . . . . Classes Destroyed 14 | 1 8 . 3 . . . . . . 1 . . . . . . 1 . Worker 4 | . 1 . 2 . . . . . . . . . . . . . 1 . Builder 4 | . 2 . 1 . . . . . . 1 . . . . . . . . Tunneler 1 | . 1 . . . . . . . . . . . . . . . . . Hauler 16 | . 2 . 4 . . . 1 2 . 1 . . 1 . 1 2 1 1 Recycler 4 | 1 1 . 1 . . . . . . . . . . . . . 1 . Operator 6 | . 1 . 1 . . . . 1 . . . . . 1 1 1 . . Drone 1 | . . . . . . . . . . . . . . . . . 1 . Watcher 20 | . 3 . 5 . . . . . . 2 . . 1 1 1 3 3 1 Swarmer 13 | . 9 . 4 . . . . . . . . . . . . . . . Grunt 20 | . 10 2 4 . . 2 2 . . . . . . . . . . . Brawler 1 | . . . 1 . . . . . . . . . . . . . . . Duelist 3 | . . . 1 . . 1 1 . . . . . . . . . . . Sentry 5 | . . . 5 . . . . . . . . . . . . . . . Programmer 1 | . . . . . . . . . . 1 . . . . . . . . Best Kill Streak 7 | 1 7 1 5 . . 3 3 2 . 2 . . 2 2 1 3 1 1 Combat Bots Only 6 | . 6 1 4 . . 3 3 . . 1 . . . . . . 1 . Max Kills in Single Turn 3 | 1 1 1 3 . . 1 1 1 . 1 . . 1 1 1 1 1 1 Gunslinging . | . . . . . . . . . . . . . . . . . . . Exploded 3 | . . . 3 . . 1 . . . . . . . . . . . . Melee 1 | . . . . . . . . . . 1 . . . . . . 1 . Uniques/NPCs Destroyed . | . . . . . . . . . . . . . . . . . . . Combat | -11 -10 -10 -9 -9 -9 -8 -8 -7 -7 -7 -6 -6 -6 -5 -4 -3 -2 -1 -------- Run | Yrd Mat Min Mat Min Exi Min Mat Fac Was Fac Fac Was Fac Fac Fac Res Res Acc Hostile Shots Fired 362 | . 72 20 64 . . 20 14 . 1 21 . . 1 . . 43 98 8 Missed 141 | . 19 4 13 . . 1 6 . . 8 . . . . . 28 57 5 Hits 221 | . 53 16 51 . . 19 8 . 1 13 . . 1 . . 15 41 3 Melee 7 | . . . 4 . . 2 . . 1 . . . . . . . . . Projectile 214 | . 53 16 47 . . 17 8 . . 13 . . 1 . . 15 41 3 Critical Strikes 8 | . . 3 2 . . . . . 1 . . . . . . . 2 . Part Disruptions 2 | . . . . . . . . . . 1 . . . . . 1 . . Damage Taken 3889 | . 511 239 694 . . 424 133 . 47 433 . . 18 . . 275 1051 64 Core 541 | . 61 28 84 . . 73 . . 47 154 . . . . . 46 48 . Absorbed by Shields . | . . . . . . . . . . . . . . . . . . . Regen/Repaired (Parts) 120 | . . . . . . . . . . 24 . . 96 . . . . . Core Remaining (%) 89 | 100 . 64 . . . 60 100 . . 71 . . 100 100 100 96 96 100 Volleys Fired 194 | 7 77 15 71 . . 8 12 4 . . . . . . . . . . Largest 2 | 2 2 2 2 . . 2 2 2 . . . . . . . . . . Hottest 133 | 40 50 40 133 . . 112 119 119 . . . . . . . . . . Shots Fired 380 | 14 154 30 139 . . 14 24 5 . . . . . . . . . . Gun 292 | 14 82 30 125 . . 12 24 5 . . . . . . . . . . Cannon 83 | . 72 . 11 . . . . . . . . . . . . . . . Launcher 5 | . . . 3 . . 2 . . . . . . . . . . . . Special . | . . . . . . . . . . . . . . . . . . . Kinetic 198 | 14 154 30 . . . . . . . . . . . . . . . . Thermal 174 | . . . 136 . . 12 24 2 . . . . . . . . . . Explosive 5 | . . . 3 . . 2 . . . . . . . . . . . . Electromagnetic 3 | . . . . . . . . 3 . . . . . . . . . . Robot Hit Streak 18 | 3 8 10 18 . . 5 6 4 . . . . . . . . . . Robot Miss Streak 4 | 1 4 3 3 . . 1 2 1 . . . . . . . . . . Penetration Max . | . . . . . . . . . . . . . . . . . . . Secondary Targets 2 | . . . . . . 1 1 . . . . . . . . . . . Max Gunslinging Chain 1 | . . . . . . 1 1 . . . . . . . . . . . Shots Hit Robots 306 | 9 94 21 91 . . 11 16 6 . 13 . . 2 3 9 16 12 3 Core Hits 120 | 2 42 7 38 . . 7 7 2 . 4 . . . 2 1 2 6 . Critical Kills . | . . . . . . . . . . . . . . . . . . . Critical Parts Destroyed 9 | . 1 . . . . . . . . 1 . . 1 . 1 4 . 1 Critical Strikes 18 | . 2 . 3 . . 2 . . . 2 . . 1 . 2 4 1 1 Burn 5 | . . . 3 . . 2 . . . . . . . . . . . . Destroy 1 | . 1 . . . . . . . . . . . . . . . . . Blast 1 | . 1 . . . . . . . . . . . . . . . . . Smash 8 | . . . . . . . . . . 1 . . 1 . 1 4 . 1 Sever 3 | . . . . . . . . . . 1 . . . . 1 . 1 . Melee Attacks 85 | . . . . . . . . 4 . 20 1 . 3 3 15 17 18 4 Impact 40 | . . . . . . . . . . 4 . . 3 . 8 12 10 3 Slashing 45 | . . . . . . . . 4 . 16 1 . . 3 7 5 8 1 Piercing . | . . . . . . . . . . . . . . . . . . . Sneak Attacks 25 | . . . . . . . . 2 . 3 . . 1 . 1 7 8 3 Combat Hostiles 1 | . . . . . . . . . . . . . . . . . 1 . Follow-up Attacks 9 | . . . . . . . . . . 3 . . . . 3 2 1 . Damage Inflicted 7702 | 66 1225 164 1725 . . 426 267 283 . 587 . . 177 162 473 1097 838 212 Guns 2420 | 66 474 164 1213 . . 168 267 68 . . . . . . . . . . Cannons 915 | . 751 . 164 . . . . . . . . . . . . . . . Explosions 606 | . . . 348 . . 258 . . . . . . . . . . . . Melee 3761 | . . . . . . . . 215 . 587 . . 177 162 473 1097 838 212 Ramming . | . . . . . . . . . . . . . . . . . . . Kinetic 1455 | 66 1225 164 . . . . . . . . . . . . . . . . Thermal 1829 | . . . 1377 . . 168 267 17 . . . . . . . . . . Explosive 606 | . . . 348 . . 258 . . . . . . . . . . . . Electromagnetic 51 | . . . . . . . . 51 . . . . . . . . . . Impact 1997 | . . . . . . . . . . 166 . . 177 . 254 851 337 212 Slashing 1764 | . . . . . . . . 215 . 421 . . . 162 219 246 501 . Piercing . | . . . . . . . . . . . . . . . . . . . Highest Corruption 8 | . 1 1 . . . . . . 5 5 . . . . . 1 8 . Average Corruption 2 | . 1 1 . . . . . . 5 5 . . . . . 1 6 . Corruption Purged . | . . . . . . . . . . . . . . . . . . . Corruption Blocked . | . . . . . . . . . . . . . . . . . . . Effects 58 | . 18 . . . . . . . 2 24 . . . . . 3 11 . Message Errors 16 | . 4 . . . . . . . . 9 . . . . . . 3 . Matter Fused 11 | . 5 . . . . . . . 1 4 . . . . . 1 . . Heat Flow Errors 10 | . 3 . . . . . . . 1 3 . . . . . 1 2 . Energy Discharges 6 | . 2 . . . . . . . . 2 . . . . . . 2 . Parts Rejected 1 | . . . . . . . . . . 1 . . . . . . . . Parts Fused 1 | . . . . . . . . . . . . . . . . 1 . . Data Loss (minor) 7 | . 2 . . . . . . . . 2 . . . . . . 3 . Data Loss (major) 5 | . 2 . . . . . . . . 2 . . . . . . 1 . Alerts 1 | . . . . . . . . . . 1 . . . . . . . . Overload Shots . | . . . . . . . . . . . . . . . . . . . Overflow Damage 1315 | . 4 . . . . 30 . 70 . 174 . . 153 3 197 333 236 115 Projectiles 4 | . 4 . . . . . . . . . . . . . . . . . Explosions 30 | . . . . . . 30 . . . . . . . . . . . . Melee 1281 | . . . . . . . . 70 . 174 . . 153 3 197 333 236 115 Knockbacks 19 | . 11 . . . . . . . . . . . 1 . 1 4 1 1 Impact 8 | . . . . . . . . . . . . . 1 . 1 4 1 1 Kinetic 10 | . 10 . . . . . . . . . . . . . . . . . Secondary 1 | . 1 . . . . . . . . . . . . . . . . . Self-Inflicted Damage 99 | . . . 7 . . 92 . . . . . . . . . . . . Shots 3 | . . . 1 . . 2 . . . . . . . . . . . . Rammed . | . . . . . . . . . . . . . . . . . . . Targets Rammed . | . . . . . . . . . . . . . . . . . . . Kicked . | . . . . . . . . . . . . . . . . . . . Crushed . | . . . . . . . . . . . . . . . . . . . Highest Temperature 283 | . 283 48 45 . . 153 72 . 133 236 . . . . . 198 209 1 Average Temperature 49 | . 55 26 13 . . 79 25 . 68 111 . . . . . 116 94 1 Received Heat Transfer 873 | . 177 192 201 . . 153 72 . . 9 . . 9 . . 24 18 18 Siege Activations . | . . . . . . . . . . . . . . . . . . . Martial Activations . | . . . . . . . . . . . . . . . . . . . Shielding Activations . | . . . . . . . . . . . . . . . . . . . Robots Disrupted . | . . . . . . . . . . . . . . . . . . . Combat Hostiles . | . . . . . . . . . . . . . . . . . . . Robots Corrupted 12 | . . . . . . . . . . . . . 2 . 2 4 2 2 Combat Hostiles . | . . . . . . . . . . . . . . . . . . . Parts Fried 15 | . . . . . . . . . . . . . 3 . . 5 4 3 Impact Corruptions 28 | . . . . . . . . . . 4 . . 3 . 3 9 5 4 Robots Melted 1 | . . . 1 . . . . . . . . . . . . . . . Combat Hostiles 1 | . . . 1 . . . . . . . . . . . . . . . Parts Melted 12 | . . . 9 . . 2 1 . . . . . . . . . . . Heat Transferred 4412 | . . . 3265 . . 518 592 37 . . . . . . . . . . Parts Sabotaged . | . . . . . . . . . . . . . . . . . . . Parts Stolen . | . . . . . . . . . . . . . . . . . . . Parts Stripped . | . . . . . . . . . . . . . . . . . . . Power Chain Reactions . | . . . . . . . . . . . . . . . . . . . Alert | -11 -10 -10 -9 -9 -9 -8 -8 -7 -7 -7 -6 -6 -6 -5 -4 -3 -2 -1 ------- Run | Yrd Mat Min Mat Min Exi Min Mat Fac Was Fac Fac Was Fac Fac Fac Res Res Acc Maximum Alert Level 1 | . 1 . 1 . . . . . . . . . . . . . . . Low Security (%) 98 | 100 94 100 98 100 . 100 100 100 100 100 100 100 100 100 100 100 100 100 Level 1 1 | . 5 . 1 . . . . . . . . . . . . . . . Level 2 . | . . . . . . . . . . . . . . . . . . . Level 3 . | . . . . . . . . . . . . . . . . . . . Level 4 . | . . . . . . . . . . . . . . . . . . . Level 5 . | . . . . . . . . . . . . . . . . . . . High Security . | . . . . . . . . . . . . . . . . . . . Max Security . | . . . . . . . . . . . . . . . . . . . Peak Influence 226 | 5 226 30 201 62 . 59 60 46 9 43 31 7 28 30 20 27 198 149 Initial 80 | . . . 3 62 . . . . 9 . 21 7 . . . . 10 80 Average 37 | . 64 7 114 53 . 11 9 8 2 12 20 2 2 3 2 4 22 62 Influence Increases 2892 | 5 657 50 588 . . 89 89 68 . 294 20 . 73 58 60 152 480 209 Destroy 0b10 Robot/C 860 | . 380 40 300 . . 60 60 . . 20 . . . . . . . . Destroy 0b10 Robot/NC 280 | 5 55 . 70 . . . 5 15 . 20 . . 10 10 15 30 35 10 Destroy Leader 270 | . 80 10 108 . . 10 12 4 . 16 . . 4 2 4 10 6 4 Successful Hack 229 | . 19 . 4 . . . 12 19 . 13 5 . 44 16 26 37 34 . Disable Machine 120 | . 30 . . . . . . 15 . . 15 . . . 15 . 15 30 Destroy Structure 53 | . 3 . 31 . . 19 . . . . . . . . . . . . Partial Spotted 135 | . 15 . . . . . . 15 . 15 . . 15 . . 45 15 15 Lose Combat Pursuer 945 | . 75 . 75 . . . . . . 210 . . . 30 . 30 375 150 Influence Decreases 2743 | 5 657 40 438 118 42 89 89 42 26 251 42 21 73 58 60 133 365 194 Entered New Map 263 | . . . 7 98 42 . . . 17 . 22 14 . . . . 9 54 Time Decay 2029 | 5 440 30 411 20 . 69 89 42 9 243 20 7 73 58 60 127 186 140 Lost Part 78 | . . 10 20 . . 20 . . . 8 . . . . . . 20 . Purge Threat 373 | . 217 . . . . . . . . . . . . . . 6 150 . Squads Dispatched 35 | . 3 . 1 . . . 1 1 . 2 . . 1 5 1 4 12 4 Investigation 12 | . 1 . . . . . . . . . . . . 3 . 1 4 3 Extermination 14 | . . . . . . . . 1 . 2 . . 1 1 1 2 5 1 Reinforcement 9 | . 2 . 1 . . . 1 . . . . . . 1 . 1 3 . Assault . | . . . . . . . . . . . . . . . . . . . Garrison . | . . . . . . . . . . . . . . . . . . . Intercept . | . . . . . . . . . . . . . . . . . . . Searches Triggered . | . . . . . . . . . . . . . . . . . . . Construction Impeded . | . . . . . . . . . . . . . . . . . . . Haulers Reinforced 1 | . . . . . . . . . . . . . . . . 1 . . Active Scanning Responses . | . . . . . . . . . . . . . . . . . . . Cargo Convoy Interrupts . | . . . . . . . . . . . . . . . . . . . Stealth | -11 -10 -10 -9 -9 -9 -8 -8 -7 -7 -7 -6 -6 -6 -5 -4 -3 -2 -1 --------- Run | Yrd Mat Min Mat Min Exi Min Mat Fac Was Fac Fac Was Fac Fac Fac Res Res Acc Distress Signals 14 | . 6 . . . . . 1 . . . . . . 1 . . 4 2 Communications Jammed . | . . . . . . . . . . . . . . . . . . . Distress Signals . | . . . . . . . . . . . . . . . . . . . Times Spotted 193 | . 33 2 32 . . 3 7 1 6 15 1 6 6 3 5 15 50 8 Peak Tracking Total 17 | . 7 2 7 . . 3 4 1 6 3 1 6 3 2 1 9 17 8 Tactical Retreats 34 | . 4 . 3 . . . . . . 11 . . . 1 . 2 10 3 ECM-based Alert Blocks 12 | . . . . . . . . . . . . . . . . 7 4 1 Traps | -11 -10 -10 -9 -9 -9 -8 -8 -7 -7 -7 -6 -6 -6 -5 -4 -3 -2 -1 ------- Run | Yrd Mat Min Mat Min Exi Min Mat Fac Was Fac Fac Was Fac Fac Fac Res Res Acc Traps Triggered 12 | . 2 . . . . . . 1 . 5 1 . . . . . 3 . Indirectly . | . . . . . . . . . . . . . . . . . . . Trap Hack Attempts . | . . . . . . . . . . . . . . . . . . . Triggered . | . . . . . . . . . . . . . . . . . . . Disarmed . | . . . . . . . . . . . . . . . . . . . Reprogrammed . | . . . . . . . . . . . . . . . . . . . Reused . | . . . . . . . . . . . . . . . . . . . Traps Extracted . | . . . . . . . . . . . . . . . . . . . Installed . | . . . . . . . . . . . . . . . . . . . Triggered . | . . . . . . . . . . . . . . . . . . . Machines | -11 -10 -10 -9 -9 -9 -8 -8 -7 -7 -7 -6 -6 -6 -5 -4 -3 -2 -1 ---------- Run | Yrd Mat Min Mat Min Exi Min Mat Fac Was Fac Fac Was Fac Fac Fac Res Res Acc Machines Disabled 8 | . 2 . . . . . . 1 . . 1 . . . 1 . 1 2 Max in Single Turn 1 | . 1 . . . . . . 1 . . 1 . . . 1 . 1 1 Garrison Access 3 | . . . . . . . . . . . . . 2 1 . . . . Machines Repaired . | . . . . . . . . . . . . . . . . . . . Machines Dismantled 2 | . . . . . . . . . . . . . . . . . . 2 Machines Sabotaged . | . . . . . . . . . . . . . . . . . . . Overloaded Fab Kills . | . . . . . . . . . . . . . . . . . . . Hacking | -11 -10 -10 -9 -9 -9 -8 -8 -7 -7 -7 -6 -6 -6 -5 -4 -3 -2 -1 --------- Run | Yrd Mat Min Mat Min Exi Min Mat Fac Was Fac Fac Was Fac Fac Fac Res Res Acc Machines Accessed 74 | . 8 . 4 . 2 . 3 5 . 8 3 . 8 9 5 7 8 4 Terminals 45 | . 6 . 3 . . . 2 4 . 1 2 . 2 6 4 5 7 3 Fabricators 7 | . . . . . . . . . . 2 . . 2 2 . 1 . . Repair Stations 3 | . . . . . . . . . . 2 . . 1 . . . . . Recycling Units 7 | . 2 . . . . . . 1 . 2 . . 1 . . . 1 . Scanalyzers 4 | . . . 1 . . . 1 . . . . . . . 1 1 . . Garrison Access 6 | . . . . . . . . . . 1 1 . 2 1 . . . 1 Total Hacks 188 | . 24 . 11 . 2 . 9 16 . 20 5 . 16 19 11 18 25 12 Successful 75 | . 13 . 4 . 2 . 6 5 . 6 1 . 10 7 6 10 5 . Failed 111 | . 11 . 7 . . . 3 11 . 14 4 . 6 12 4 7 20 12 Catastrophic 21 | . . . . . . . . . . 3 1 . 1 4 1 1 5 5 Database Lockouts 2 | . . . . . . . . . . . . . . . 1 1 . . Manual 114 | . 20 . 4 . 1 . 7 14 . 8 3 . 7 13 9 7 17 4 Terminals 134 | . 21 . 9 . . . 7 14 . 3 4 . 5 14 9 14 23 11 Fabricators 17 | . . . . . . . . . . 8 . . 3 4 . 2 . . Repair Stations 8 | . . . . . . . . . . 4 . . 4 . . . . . Recycling Units 11 | . 3 . . . . . . 2 . 3 . . 1 . . . 2 . Scanalyzers 8 | . . . 2 . . . 2 . . . . . . . 2 2 . . Garrison Access 8 | . . . . . . . . . . 2 1 . 3 1 . . . 1 Terminal Hacks 26 | . 4 . 4 . 2 . . 1 . . . . . 3 1 7 4 . Record 1 | . . . . . 1 . . . . . . . . . . . . . Robot Analysis 1 | . 1 . . . . . . . . . . . . . . . . . Prototype ID Bank 2 | . . . 1 . . . . . . . . . . 1 . . . . Open DSF 1 | . . . . . . . . . . . . . . . . . 1 . Level Access Points 4 | . . . . . . . . . . . . . . 1 1 1 1 . Machine Index 1 | . . . . . . . . . . . . . . . . 1 . . Terminal Index 3 | . . . . . . . . 1 . . . . . 1 . 1 . . Unreport Threat 5 | . 2 . . . . . . . . . . . . . . 2 1 . Locate Traps 3 | . 1 . 1 . . . . . . . . . . . . 1 . . Zone Layout 4 | . . . 2 . . . . . . . . . . . . 1 1 . Proto ID Catalog 1 | . . . . . 1 . . . . . . . . . . . . . Fabricator Hacks 3 | . . . . . . . . . . 1 . . 1 1 . . . . Network Status 3 | . . . . . . . . . . 1 . . 1 1 . . . . Repair Station Hacks 7 | . . . . . . . . . . 3 . . 4 . . . . . Scan Component 4 | . . . . . . . . . . 2 . . 2 . . . . . Repair 3 | . . . . . . . . . . 1 . . 2 . . . . . Recycling Unit Hacks 2 | . 1 . . . . . . 1 . . . . . . . . . . Retrieve Components 2 | . 1 . . . . . . 1 . . . . . . . . . . Scanalyzer 3 | . . . . . . . 1 . . . . . . . 1 1 . . Retrieve Study 3 | . . . . . . . 1 . . . . . . . 1 1 . . Garrison Access Hacks 3 | . . . . . . . . . . . . . 2 1 . . . . Seal Access 3 | . . . . . . . . . . . . . 2 1 . . . . Unauthorized Hacks 30 | . 8 . . . . . 4 3 . 2 1 . 3 2 4 2 1 . Terminals 26 | . 8 . . . . . 4 3 . . 1 . 2 1 4 2 1 . Assimilate 4 | . . . . . . . . . . . . . 1 . 2 1 . . Botnet 12 | . 1 . . . . . 2 2 . . 1 . 1 1 2 1 1 . Operators 2 | . 1 . . . . . . 1 . . . . . . . . . . Skim 8 | . 6 . . . . . 2 . . . . . . . . . . . Fabricators 4 | . . . . . . . . . . 2 . . 1 1 . . . . Liberate 1 | . . . . . . . . . . 1 . . . . . . . . Fabnet 3 | . . . . . . . . . . 1 . . 1 1 . . . . Repair Stations . | . . . . . . . . . . . . . . . . . . . Recycling Units . | . . . . . . . . . . . . . . . . . . . Scanalyzers . | . . . . . . . . . . . . . . . . . . . Garrison Access . | . . . . . . . . . . . . . . . . . . . Data Cores Recovered 2 | . . . 1 . . . . . . . . . . . . 1 . . Used 1 | . . . 1 . . . . . . . . . . . . . . . Hacking Detections 60 | . 6 . 3 . . . 3 5 . 7 3 . 6 8 4 4 7 4 Full Trace Events 11 | . . . . . . . . . . . . . . 3 . 1 4 3 Feedback Events . | . . . . . . . . . . . . . . . . . . . Feedback Blocked 1 | . . . . . . . . . . . . . . . . . 1 . Robot Schematics Acquired . | . . . . . . . . . . . . . . . . . . . Robots Built . | . . . . . . . . . . . . . . . . . . . Authchips . | . . . . . . . . . . . . . . . . . . . Time . | . . . . . . . . . . . . . . . . . . . Total Robot Build Rating . | . . . . . . . . . . . . . . . . . . . Part Schematics Acquired . | . . . . . . . . . . . . . . . . . . . Parts Built . | . . . . . . . . . . . . . . . . . . . Authchips . | . . . . . . . . . . . . . . . . . . . Time . | . . . . . . . . . . . . . . . . . . . Total Part Build Rating . | . . . . . . . . . . . . . . . . . . . Part Studies Acquired 3 | . . . . . . . 1 . . . . . . . 1 1 . . Parts Repaired 3 | . . . . . . . . . . 1 . . 2 . . . . . Time 201 | . . . . . . . . . . 100 . . 101 . . . . . Parts Recycled . | . . . . . . . . . . . . . . . . . . . Recycled Matter . | . . . . . . . . . . . . . . . . . . . Retrieved Matter . | . . . . . . . . . . . . . . . . . . . Retrieved Components 5 | . 2 . . . . . . 3 . . . . . . . . . . Parts Scanalyzed . | . . . . . . . . . . . . . . . . . . . Part Schematics Acquired . | . . . . . . . . . . . . . . . . . . . Parts Damaged . | . . . . . . . . . . . . . . . . . . . Bothacking | -11 -10 -10 -9 -9 -9 -8 -8 -7 -7 -7 -6 -6 -6 -5 -4 -3 -2 -1 ------------ Run | Yrd Mat Min Mat Min Exi Min Mat Fac Was Fac Fac Was Fac Fac Fac Res Res Acc Used RIF Installer . | . . . . . . . . . . . . . . . . . . . Robots Hacked 1 | . . . . . . . . . . . . . . . . 1 . . Non-combat . | . . . . . . . . . . . . . . . . . . . Combat 1 | . . . . . . . . . . . . . . . . 1 . . Robot Hacks Applied . | . . . . . . . . . . . . . . . . . . . Relay Couplers Released . | . . . . . . . . . . . . . . . . . . . Fabnet Peak Effective % 4 | . . . . . . . . . . . . . . 3 4 1 . . Autooverrided 1 | . . . . . . . . . . . . . . . . 1 . . Robots Rewired . | . . . . . . . . . . . . . . . . . . . Allies Hacked . | . . . . . . . . . . . . . . . . . . . Hacks Repelled . | . . . . . . . . . . . . . . . . . . . Allies | -11 -10 -10 -9 -9 -9 -8 -8 -7 -7 -7 -6 -6 -6 -5 -4 -3 -2 -1 -------- Run | Yrd Mat Min Mat Min Exi Min Mat Fac Was Fac Fac Was Fac Fac Fac Res Res Acc Total Allies 5 | . . . . . . . . . . . . . 1 . 2 2 . . Largest Group 3 | . . . . . . . . . . . . . 1 1 2 3 . . Highest-Rated Group 78 | . . . . . . . . . . . . . 26 26 52 78 . . Highest-Rated Ally 64 | . . . . . . . . . . . . . 26 26 26 64 . . Total Orders 6 | . . . . . . . . . . . . . 2 . 2 2 . . STAY 3 | . . . . . . . . . . . . . 1 . 1 1 . . FOLLOW 3 | . . . . . . . . . . . . . 1 . 1 1 . . Ally Attacks 4 | . . . . . . . . . . . . . . . . 4 . . Total Damage 168 | . . . . . . . . . . . . . . . . 168 . . Kills . | . . . . . . . . . . . . . . . . . . . Allies Corrupted . | . . . . . . . . . . . . . . . . . . . Allies Melted . | . . . . . . . . . . . . . . . . . . . Intel | -11 -10 -10 -9 -9 -9 -8 -8 -7 -7 -7 -6 -6 -6 -5 -4 -3 -2 -1 ------- Run | Yrd Mat Min Mat Min Exi Min Mat Fac Was Fac Fac Was Fac Fac Fac Res Res Acc Active Infowar (turns) 4880 | . . . . . . . 571 243 70 871 44 56 451 477 368 602 833 294 Optics 4880 | . . . . . . . 571 243 70 871 44 56 451 477 368 602 833 294 Structural 3494 | . . . . . . . . . . 369 44 56 451 477 368 602 833 294 Seismic 2 | . . . . . . . . . . 2 . . . . . . . . T.N.C. 1695 | . . . . . . . . 114 70 855 44 56 451 105 . . . . Machine Analysis 3996 | . . . . . . . . . . 871 44 56 451 477 368 602 833 294 Cloaking 444 | . . . . . . . . . . . . . . . . . 444 . Jamming 68 | . . . . . . . . . . . . . . . . . 62 6 ECM 53 | . . . . . . . . . . . . . . . . 12 38 3 Robot Analysis Total 1 | . 1 . . . . . . . . . . . . . . . . . Derelict Logs Recovered 1 | . . . . 1 . . . . . . . . . . . . . . Drone Launches . | . . . . . . . . . . . . . . . . . . . Drone Recoveries . | . . . . . . . . . . . . . . . . . . . Exploration | -11 -10 -10 -9 -9 -9 -8 -8 -7 -7 -7 -6 -6 -6 -5 -4 -3 -2 -1 ------------- Run | Yrd Mat Min Mat Min Exi Min Mat Fac Was Fac Fac Was Fac Fac Fac Res Res Acc Turns Passed 8992 | 78 1845 133 1154 50 427 425 571 243 70 871 44 56 451 477 368 602 833 294 Spaces Moved 9882 | 51 675 53 458 27 244 223 243 330 164 1225 114 151 736 1044 587 1108 1997 452 Core 9 | 9 . . . . . . . . . . . . . . . . . . Treads 70 | . 70 . . . . . . . . . . . . . . . . . Legs . | . . . . . . . . . . . . . . . . . . . Wheels 1965 | 42 605 53 458 27 244 223 243 70 . . . . . . . . . . Hover 63 | . . . . . . . . . . 63 . . . . . . . . Flight 7775 | . . . . . . . . 260 164 1162 114 151 736 1044 587 1108 1997 452 Fastest Speed 27 | 50 95 140 135 175 175 175 140 34 34 30 30 30 30 28 28 28 27 27 Average Speed 58 | 88 159 159 181 175 175 175 167 56 34 38 30 30 30 28 28 28 27 27 Slowest Speed 215 | 150 215 200 215 175 175 175 190 140 34 180 30 30 30 30 28 29 27 28 Overloaded Moves . | . . . . . . . . . . . . . . . . . . . Propulsion Burnouts . | . . . . . . . . . . . . . . . . . . . Robots Hopped 72 | . . . . . . . . . 2 6 . 2 . . . 9 49 4 Potential Cave-ins . | . . . . . . . . . . . . . . . . . . . Cave-ins Triggered . | . . . . . . . . . . . . . . . . . . . Exploration Rate (%) 37 | 4 98 27 46 7 62 57 27 13 85 33 3 85 19 31 14 38 54 14 Regions Visited 18 Branch Regions 4 Pre-discovered Areas 2 | . 1 . . . 1 . . . . . . . . . . . . . Known Exits Taken 10 | . 1 1 1 . . 1 . . . 1 . . 1 1 1 1 1 . Unknown Exits Taken 4 | 1 . . . 1 1 . 1 . . . . . . . . . . . Scrap Searched 2 | . . . . . . 2 . . . . . . . . . . . . Spaces Dug . | . . . . . . . . . . . . . . . . . . . Terrain Destroyed 52 | . . . 26 . . 26 . . . . . . . . . . . . Melee . | . . . . . . . . . . . . . . . . . . . Projectile . | . . . . . . . . . . . . . . . . . . . AOE 52 | . . . 26 . . 26 . . . . . . . . . . . . Terrain Rammed . | . . . . . . . . . . . . . . . . . . . Walls Destroyed . | . . . . . . . . . . . . . . . . . . . Machines Disabled . | . . . . . . . . . . . . . . . . . . . Actions | -11 -10 -10 -9 -9 -9 -8 -8 -7 -7 -7 -6 -6 -6 -5 -4 -3 -2 -1 --------- Run | Yrd Mat Min Mat Min Exi Min Mat Fac Was Fac Fac Was Fac Fac Fac Res Res Acc Total 12555 | 69 1312 79 651 30 245 244 388 385 176 1586 121 158 959 1225 770 1360 2210 587 Wait 2073 | 1 504 7 51 4 . 3 113 7 4 300 . 6 210 151 156 234 218 104 Move 9730 | 50 674 52 457 26 243 222 242 330 160 1212 114 147 735 1043 586 1090 1904 443 Hop 63 | . . . . . . . . . 1 6 . 1 . . . 8 43 4 Pick Up 114 | 5 29 2 20 . 1 2 7 9 2 6 1 . 6 7 5 4 7 1 Fast Attach 54 | 5 2 . 6 . . 2 2 8 3 12 1 2 1 4 3 1 1 1 Attach 33 | 1 1 2 4 . . 2 1 4 1 1 2 . 1 1 2 2 7 1 Detach 7 | . . . . . . 1 1 . 1 1 1 . . 1 . . 1 . Swap 63 | . 10 . 16 . . 2 2 1 . 7 1 . 2 3 . 3 11 5 Drop 114 | . 15 1 26 . 1 2 8 18 4 10 . 2 1 12 6 3 2 3 Fire 194 | 7 77 15 71 . . 8 12 4 . . . . . . . . . . Melee 73 | . . . . . . . . 4 . 16 1 . 3 3 12 15 16 3 Ram . | . . . . . . . . . . . . . . . . . . . Kick . | . . . . . . . . . . . . . . . . . . . Crush . | . . . . . . . . . . . . . . . . . . . Escape Stasis 15 | . . . . . . . . . . 15 . . . . . . . . Rewire . | . . . . . . . . . . . . . . . . . . . Trap . | . . . . . . . . . . . . . . . . . . . Miscellaneous 22 | . . . . . . . . . . . . . . . . . . 22 Route ------- -11/Scrapyard -10/Materials (discovered 5 exits: *Mat x3 / *Min / *Sub) -10/Mines (discovered 2 exits: *Mat x2) -9/Materials (discovered 2 exits: *Mat / *Min) -9/Mines (discovered 2 exits: *Mat / *Exi) -9/Exiles -8/Mines -8/Materials -7/Factory -7/Waste -7/Factory (discovered 2 exits: *Fac / *Sto) -6/Factory -6/Waste -6/Factory -5/Factory (discovered 4 exits: *Fac x4) -4/Factory (discovered 4 exits: *Res x4) -3/Research (discovered 3 exits: *Res x3) -2/Research (discovered 3 exits: *Acc x3) -1/Access To Epsilon Eridani History --------- Turn | Location | Event 22 | -11/Scrapyard | Discovered new exit (range 15) 79 | -11/Scrapyard | Entered Materials 235 | -10/Materials | Discovered new exit (range 10) 309 | -10/Materials | Build established: Mutant 667 | -10/Materials | Discovered new exit (range 3) 842 | -10/Materials | Discovered new exit (range 16) 938 | -10/Materials | Discovered new exit (range 14) 1140 | -10/Materials | Discovered new exit (range 5) 1400 | -10/Materials | Learned location of Mines (-10) 1474 | -10/Materials | Learned location of 2 exits from Subcaves 1538 | -10/Materials | Learned location of 1 exit from Storage 1594 | -10/Materials | Learned location of 2 exits from Materials 1677 | -10/Materials | Loaded intel: 9 trap records 1782 | -10/Materials | Identified exit to Mines 1782 | -10/Materials | Identified exit to Subcaves 1782 | -10/Materials | Identified exit to Materials 1837 | -10/Materials | Learned Storage terminal intel 1903 | -10/Materials | Learned location of 1 exit from Recycling 1924 | -10/Materials | Entered Mines 1958 | -10/Mines | Received a Rocket Launcher from a helpful Derelict 2057 | -10/Mines | Entered Materials 2057 | -9/Materials | Evolved 2 slots: Propulsion x1, Utility x1 2058 | -9/Materials | Identified exit to Materials 2058 | -9/Materials | Identified exit to Mines 2538 | -9/Materials | Build established: Scavenger-Mutant 2946 | -9/Materials | Build established: Mutant 3211 | -9/Materials | Entered Mines 3224 | -9/Mines | Learned Materials stockpile data 3235 | -9/Mines | Discovered exit to Materials (range 3) 3254 | -9/Mines | Deemed a non-threat by the Exiles lab entrance 3254 | -9/Mines | Discovered new exit (range 5) 3261 | -9/Mines | Entered Exiles 3303 | -9/Exiles | Met 8R-AWN 3335 | -9/Exiles | Met EX-HEX 3401 | -9/Exiles | Met EX-DEC 3410 | -9/Exiles | Learned location of Zion (-7) 3438 | -9/Exiles | Met EX-BIN 3463 | -9/Exiles | Aligned with FarCom system 3464 | -9/Exiles | Given EX-Vault access code 3506 | -9/Exiles | Opened EX-Vault 3516 | -9/Exiles | Found Modified TNC 3553 | -9/Exiles | Warned to stay clear of 0b10 Research branches 3669 | -9/Exiles | Discovered new exit (range 12) 3688 | -9/Exiles | Left Exiles lab with Modified TNC 3688 | -9/Exiles | Entered Mines 3735 | -8/Mines | Lost 3 parts (1n1u1w) 4097 | -8/Mines | Discovered exit to Materials (range 9) 4113 | -8/Mines | Entered Materials 4113 | -8/Materials | Evolved 2 slots: Propulsion x1, Utility x1 4638 | -8/Materials | Discovered new exit (range 8) 4684 | -8/Materials | Entered Factory 4684 | -7/Factory | Evolved 2 slots: Utility x2 4825 | -7/Factory | Discovered new exit (range 5) 4826 | -7/Factory | Identified exit to Lower Caves 4927 | -7/Factory | Sucked down chute 4927 | -7/Factory | Entered Waste 4942 | -7/Waste | EMP discharged 4943 | -7/Waste | Spotted C-40 Crusher 4944 | -7/Waste | Spotted C-40 Crusher 4956 | -7/Waste | Spotted C-40 Crusher 4960 | -7/Waste | Spotted C-40 Crusher 4964 | -7/Waste | Spotted C-40 Crusher 4977 | -7/Waste | Spotted C-40 Crusher 4977 | -7/Waste | Crushed by Compactor (1 part destroyed, 2 dropped) 4988 | -7/Waste | Discovered new exit (range 12) 4997 | -7/Waste | Identified exit to Factory 4997 | -7/Waste | Entered Factory 5171 | -7/Factory | Repaired Broken Gravity Neutralizer? 5395 | -7/Factory | Build established: Scout 5493 | -7/Factory | Discovered new exit (range 17) 5500 | -7/Factory | Identified exit to Factory 5548 | -7/Factory | Discovered new exit (range 17) 5718 | -7/Factory | Identified exit to Storage 5868 | -7/Factory | Entered another Factory area 5868 | -6/Factory | Evolved 2 slots: Utility x2 5898 | -6/Factory | Discovered new exit (range 17) 5912 | -6/Factory | Sucked down chute 5912 | -6/Factory | Entered Waste 5915 | -6/Waste | Spotted C-40 Crusher 5919 | -6/Waste | Spotted C-40 Crusher 5931 | -6/Waste | Spotted C-40 Crusher 5934 | -6/Waste | Spotted C-40 Crusher 5934 | -6/Waste | Spotted C-40 Crusher 5941 | -6/Waste | Discovered new exit (range 13) 5941 | -6/Waste | Spotted C-40 Crusher 5967 | -6/Waste | Identified exit to Factory 5968 | -6/Waste | Entered Factory 6042 | -6/Factory | Repaired Imp. Flight Unit 6093 | -6/Factory | Repaired Lgt. Fission Core? 6207 | -6/Factory | Discovered new exit (range 9) 6209 | -6/Factory | Identified exit to Factory 6218 | -6/Factory | Spotted B-75 Beast 6419 | -6/Factory | Entered another Factory area 6419 | -5/Factory | Accompanied by 1 ally 6419 | -5/Factory | Evolved 2 slots: Power x1, Propulsion x1 6736 | -5/Factory | Identified exit to Factory 6896 | -5/Factory | Entered another Factory area 6896 | -4/Factory | Evolved 2 slots: Utility x2 7040 | -4/Factory | Identified exit to Research 7058 | -4/Factory | Central database locked down 7264 | -4/Factory | Entered Research 7264 | -3/Research | Accompanied by 2 allies 7264 | -3/Research | Evolved 2 slots: Utility x2 7278 | -3/Research | Central database locked down 7356 | -3/Research | Identified exit to Research 7497 | -3/Research | Spotted B-86 Titan 7568 | -3/Research | Build established: Hacker-Scout 7581 | -3/Research | Lost 3 allies 7866 | -3/Research | Entered another Research area 7866 | -2/Research | Evolved 2 slots: Propulsion x1, Utility x1 7925 | -2/Research | Discovered new exit (range 19) 8019 | -2/Research | Found Prototype Protection 8019 | -2/Research | Identified Centrium Heavy Armor Plating 8155 | -2/Research | Build established: Hacker-Ninja 8209 | -2/Research | Spotted B-90 Cyclops 8657 | -2/Research | Spotted B-90 Cyclops 8671 | -2/Research | Identified exit to Access 8699 | -2/Research | Entered Access 8699 | -1/Access | Evolved 2 slots: Utility x2 8991 | -1/Access | Discovered new exit (range 4) 8993 | -1/Access | Identified exit to Surface 8993 | *** | Escaped! Last Messages --------------- 08892_ >> Machine Analyzer network decryption results: 08892_ Terminal x2 08898_ Connecting with Terminal... 08898_ ALERT: Suspicious activity at Terminal A008. Dispatching Investigation squad. 08926_ W-44 Eye sends out distress signal. 08931_ >> Machine Analyzer network decryption results: 08931_ Terminal x1 08932_ ALERT: Potential suspicious activity detected, Programmers report to Access Zone 1B. 08946_ Connecting with Terminal... 08946_ ALERT: Suspicious activity at Terminal A001. Dispatching Investigation squad. 08948_ Dismantling Sealed Barrier with Imp. Plasma Cutter. 08978_ Sealed Barrier dismantled. 08981_ Dismantling Main Access Shell with Imp. Plasma Cutter. 08991_ Main Access Shell dismantled. 08991_ EXIT=FOUND 08993_ EXIT=IDENTIFIED: SURFACE [Achievement: Engineer's Best Friend] Map ----- +----------------------------------------------------+ | ##### ! # ##???????????????????????? | | ##### # = #####????????????????????? | | ############+######+#########????????????????????? | | ##????????????????????? | | ##????????????????????? | | ##????????????????????? | | ##????????????????????? | | #####+######+########## ##????????????????????? | | !! # ###### ?? ##????????????????????? | | != # ##??????? ##????????????????????? | | # ##??????????????????????????????? | | # " ##??????????????????????????????? | | # """ ##??????????????????????????????? | | "" "" # """ ##??????????????????????????????? | | ""T"" +[ " ##??BB????BB????????????????????? | | """ # ##??BB????BB????????????????????? | | ######### ##??????????????????????????????? | | ###########??????????????????????????????? | | ###########??????????????????????????????? | | ##???????????????????????????????????????? | | ##???????????????????????????????????????? | | ##???????????????????????????????????????? | | ###########???????## ?""""""?????????????????????? | | ###########???????## ?" "? ##?????????????????? | | ! ##???????## ?" "" "? ##?????????????????? | | ##???????## ?" "@ "? ##?????????????????? | | "" =##???????## " " ##?????????????????? | | """ ##???????## " "" ##?????????????????? | | """ ##???????## ##?????????????????? | | """ ##???????## ##?????????????????? | | """ ##???????#"""" """""#?????????????????? | | """ ##???????##"" ##?????????????????? | | "" ##???????##"" ##?????????????????? | | "" ##???????##"" ##?????????????????? | | ##???????##T ##?????????????????? | | ##???????##"" ##?????????????????? | | ####################"" ###????????????????? | | ####################"" ###????????????????? | | ggg l ????????? | | g ???????? | | ########### ######################+######???????? | | ########### ###################### ???????? | | ?????????## ##??????????????????????????????????? | | ?????????## ##??????????????????????????????????? | | ?????????## ##??????????????????????????????????? | | ????????? ##??????????????????????????????????? | | ???????? ##??????????????????????????????????? | | ????????#######??????????????????????????????????? | | ????????#######??????????????????????????????????? | | ?????????????????????????????????????????????????? | +----------------------------------------------------+ Best States ------------- Heat Dissipation 71 Coolant Potential 50 Energy Generation 30 Energy Capacity 265 Matter Stores 300 Matter Capacity 300 Sight Range 20 Terrain Scan Density 10 ECM Strength 2 Jamming Range 16 Cloak Strength 2 Additional Mass Support 12 Armor Coverage 600 Evasion (%) 74 Targeting Accuracy 6 Recoil Reduction 3 Offensive Hacking 22 Defensive Hacking 14 Item Schematics ----------------- None Robot Schematics ------------------ None Fabricated ------------ Nothing Repaired ---------- Gravity Neutralizer | 17% | -7/Factory | Broken Imp. Flight Unit | 2% | -6/Factory Lgt. Fission Core | 5% | -6/Factory Studied --------- Lgt. Nuclear Core | -8/Materials | Hacked Mic. Fission Core | -4/Factory | Hacked Field Propulsion Drive | -3/Research | Hacked Alien Tech Used ----------------- None Achievements -------------- Engineer's Best Friend Challenges ------------ None Game ------ Seed DroneMasterRipteeth Manual? 0 Play Time 01:18:34 Cumulative 1593.9 hours Start 2025.10.27 @ 01:07:10 End 2025.10.27 @ 02:22:27 Sessions 1 Manual Loads 0 Difficulty Rogue Special Mode None Game No. 1130 Rogue 1090 Adventurer 40 Explorer 0 Win Type 0 Total 203 Types 88/11/74/2/2/4/16/2/1/3 Lore% 97 Gallery% 97 Achievement% 77 Wizard Run 0 Options --------- Layout 0 ASCII 0 Keyboard 0 Movement Numpad Keybinds 0 Fullscreen 0 Font 20/Terminus Map View 76x50 Zoom Use 0% Tactical HUD 1 Map Filters NONE Filters NONE Steam 1 RUN: ef4af70b-c497-4536-9498-3f69c419e310